fUSD/lending_fUSD_20241122
["ID","MTS","AMOUNT","RATE_DAILY","PERIOD"]
[343027454,1732294262478,-635.37,0.0009589,120]
[343027455,1732294262488,-635.37,0.0009589,120]
[343027456,1732294262498,-500.0,0.0009589,120]
[343027457,1732294262508,-500.0,0.0009589,120]
[343027458,1732294262517,-635.37,0.0009589,120]
[343027459,1732294262527,-500.0,0.0009589,120]
[343027460,1732294262536,-500.0,0.0009589,120]
[343027461,1732294262545,-635.37,0.0009589,120]
[343027462,1732294262558,-500.0,0.0009589,120]
[343027463,1732294262568,-366.65,0.0009589,120]
[343027464,1732294262578,-635.37,0.0009589,120]
[343027465,1732294262588,-500.0,0.0009589,120]
[343027466,1732294262598,-640.33,0.0009589,120]
[343027467,1732294262607,-635.37,0.0009589,120]
[343027468,1732294262617,-635.5,0.0009589,120]
[343027469,1732294262626,-500.0,0.0009589,120]
[343027470,1732294262637,-500.0,0.0009589,120]
[343027471,1732294262647,-500.0,0.0009589,120]
[343027472,1732294262658,-500.0,0.0009589,120]
[343027473,1732294262671,-500.0,0.0009589,120]
[343027474,1732294262683,-500.0,0.0009589,120]
[343027475,1732294262693,-500.0,0.0009589,120]
[343027476,1732294262703,-500.0,0.0009589,120]
[343027477,1732294262713,-500.0,0.0009589,120]
[343027478,1732294262724,-500.0,0.0009589,120]
[343027479,1732294262734,-500.0,0.0009589,120]
[343027480,1732294262744,-500.0,0.0009589,120]
[343027481,1732294262754,-500.0,0.0009589,120]
[343027482,1732294262765,-500.0,0.0009589,120]
[343027483,1732294262776,-500.0,0.0009589,120]
[343027484,1732294262785,-500.0,0.0009589,120]
[343027485,1732294262795,-500.0,0.0009589,120]
[343027486,1732294262805,-500.0,0.0009589,120]
[343027487,1732294262815,-500.0,0.0009589,120]
[343027488,1732294262824,-500.0,0.0009589,120]
[343027489,1732294262835,-500.0,0.0009589,120]
[343027490,1732294262845,-500.0,0.0009589,120]
[343027491,1732294262855,-500.0,0.0009589,120]
[343027492,1732294262865,-500.0,0.0009589,120]
[343027493,1732294262874,-500.0,0.0009589,120]
[343027494,1732294262885,-441.60995066,0.0009589,120]
[343027495,1732294262895,-500.0,0.0009589,120]
[343027496,1732294262905,-500.0,0.0009589,120]
[343027497,1732294262916,-500.0,0.0009589,120]
[343027498,1732294262926,-500.0,0.0009589,120]
[343027499,1732294262936,-500.0,0.0009589,120]
[343027500,1732294262947,-500.0,0.0009589,120]
[343027501,1732294262956,-500.0,0.0009589,120]
[343027502,1732294262966,-500.0,0.0009589,120]
[343027503,1732294262978,-500.0,0.0009589,120]
[343027504,1732294262992,-500.0,0.0009589,120]
[343027505,1732294263004,-500.0,0.0009589,120]
[343027506,1732294263014,-500.0,0.0009589,120]
[343027507,1732294263025,-500.0,0.0009589,120]
[343027508,1732294263036,-233.78,0.0009589,120]
[343027509,1732294263046,-500.0,0.0009589,120]
[343027510,1732294263056,-477.13234151,0.0009589,120]
[343027511,1732294263066,-500.0,0.0009589,120]
[343027512,1732294263080,-500.0,0.0009589,120]
[343027513,1732294263091,-500.0,0.0009589,120]
[343027514,1732294263100,-585.36,0.0009589,120]
[343027515,1732294263110,-500.0,0.0009589,120]
[343027516,1732294263120,-393.35,0.0009589,120]
[343027517,1732294263129,-500.0,0.0009589,120]
[343027518,1732294263139,-500.0,0.0009589,120]
[343027519,1732294263149,-500.0,0.0009589,120]
[343027520,1732294263159,-500.0,0.0009589,120]
[343027521,1732294263172,-500.0,0.0009589,120]
[343027522,1732294263181,-500.0,0.0009589,120]
[343027523,1732294263191,-264.67378605,0.0009589,120]
[343027524,1732294263201,-500.0,0.0009589,120]
[343027525,1732294263210,-500.0,0.0009589,2]
[343027526,1732294263221,-500.0,0.0009589,120]
[343027527,1732294263231,-501.23431769,0.0009589,2]
[343027528,1732294263241,-500.0,0.0009589,120]
[343027529,1732294263252,-500.0,0.0009589,120]
[343027530,1732294263262,-500.0,0.0009589,120]
[343027531,1732294263272,-500.0,0.0009589,120]
[343027532,1732294263281,-500.0,0.0009589,120]
[343027533,1732294263292,-500.0,0.0009589,120]
[343027534,1732294263302,-500.0,0.0009589,120]
[343027535,1732294263312,-500.0,0.0009589,120]
[343027536,1732294263321,-500.0,0.0009589,120]
[343027537,1732294263331,-196.93,0.0009589,120]
[343027538,1732294263341,-500.0,0.0009589,120]
[343027539,1732294263351,-500.0,0.0009589,120]
[343027540,1732294263360,-500.0,0.0009589,120]
[343027541,1732294263370,-500.0,0.0009589,120]
[343027542,1732294263380,-500.0,0.0009589,120]
[343027543,1732294263390,-500.0,0.0009589,120]
[343027544,1732294263400,-500.0,0.0009589,120]
[343027545,1732294263409,-500.0,0.0009589,120]
[343027546,1732294263421,-500.0,0.0009589,120]
[343027547,1732294263431,-500.0,0.0009589,120]
[343027548,1732294263441,-500.0,0.0009589,120]
[343027549,1732294263452,-555.55761308,0.0009589,120]
[343027550,1732294263461,-500.0,0.0009589,120]
[343027551,1732294263471,-500.0,0.0009589,120]
[343027552,1732294263481,-500.0,0.0009589,120]
[343027553,1732294263492,-500.0,0.0009589,120]
[343027554,1732294263502,-1890.7,0.00095899,120]
[343027555,1732294263512,-500.0,0.00095899,120]
[343027556,1732294263521,-1481.74,0.00095899,120]
[343027557,1732294263531,-574.61,0.00095899,120]
[343027558,1732294263542,-2217.47,0.00095899,120]
[343027559,1732294263620,-500.0,0.00095899,120]
[343027560,1732294263631,-3472.62,0.00095899,120]
[343027561,1732294263641,-2014.64,0.00095899,120]
[343027562,1732294263651,-1980.68,0.00095899,120]
[343027563,1732294263661,-4587.14,0.00095899,120]
[343027564,1732294263673,-8229.29,0.00095899,120]
[343027565,1732294263683,-500.0,0.00095899,120]
[343027566,1732294263693,-50000.0,0.000959,120]
[343027567,1732294263703,-1100.0,0.000959,35]
[343027568,1732294263713,-1890.7,0.00095999,120]
[343027569,1732294263723,-1890.7,0.00095999,120]
[343027570,1732294263733,-1890.7,0.00095999,120]
[343027571,1732294263742,-1890.7,0.00095999,120]
[343027572,1732294263751,-1890.7704,0.00095999,120]
[343027573,1732294263761,-500.0,0.00095999,120]
[343027574,1732294263771,-500.0,0.00095999,120]
[343027575,1732294263781,-500.0,0.00095999,120]
[343027576,1732294263791,-1481.74,0.00095999,120]
[343027577,1732294263801,-1481.74,0.00095999,120]
[343027578,1732294263811,-1481.74,0.00095999,120]
[343027579,1732294263821,-1481.74,0.00095999,120]
[343027580,1732294263830,-1481.96307932,0.00095999,120]
[343027581,1732294263840,-574.61,0.00095999,120]
[343027582,1732294263849,-574.61,0.00095999,120]
[343027583,1732294263858,-574.61,0.00095999,120]
[343027584,1732294263868,-574.61,0.00095999,120]
[343027585,1732294263877,-574.61,0.00095999,120]
[343027586,1732294263887,-574.61,0.00095999,120]
[343027587,1732294263897,-574.61,0.00095999,120]
[343027588,1732294263907,-574.61,0.00095999,120]
[343027589,1732294263918,-574.7725398,0.00095999,120]
[343027590,1732294263928,-2217.47,0.00095999,120]
[343027591,1732294263937,-2217.47,0.00095999,120]
[343027592,1732294263947,-2217.47,0.00095999,120]
[343027593,1732294263957,-2217.47,0.00095999,120]
[343027594,1732294263967,-2217.47,0.00095999,120]
[343027595,1732294263980,-2217.47,0.00095999,120]
[343027596,1732294263992,-2217.47,0.00095999,120]
[343027597,1732294264003,-2217.47,0.00095999,120]
[343027598,1732294264014,-2217.66708343,0.00095999,120]
[343027599,1732294264026,-500.0,0.00095999,120]
[343027600,1732294264037,-500.0,0.00095999,120]
[343027601,1732294264047,-500.0,0.00095999,120]
[343027602,1732294264058,-500.0,0.00095999,120]
[343027603,1732294264070,-500.0,0.00095999,120]
[343027604,1732294264080,-500.0,0.00095999,120]
[343027605,1732294264090,-500.0,0.00095999,120]
[343027606,1732294264100,-500.0,0.00095999,120]
[343027607,1732294264110,-500.10439999,0.00095999,120]
[343027608,1732294264120,-3472.62,0.00095999,120]
[343027609,1732294264130,-3472.62,0.00095999,120]
[343027610,1732294264140,-3472.62,0.00095999,120]
[343027611,1732294264149,-3472.62,0.00095999,120]
[343027612,1732294264158,-3472.62,0.00095999,120]
[343027613,1732294264170,-3472.62,0.00095999,120]
[343027614,1732294264180,-3472.62,0.00095999,120]
[343027615,1732294264189,-3472.62,0.00095999,120]
[343027616,1732294264198,-3472.72,0.00095999,120]
[343027617,1732294264208,-2014.64,0.00095999,120]
[343027618,1732294264218,-2014.64,0.00095999,120]
[343027619,1732294264228,-2014.64,0.00095999,120]
[343027620,1732294264238,-2014.64,0.00095999,120]
[343027621,1732294264247,-2014.64,0.00095999,120]
[343027622,1732294264257,-2014.64,0.00095999,120]
[343027623,1732294264267,-2014.64,0.00095999,120]
[343027624,1732294264276,-2014.64,0.00095999,120]
[343027625,1732294264286,-2014.74727625,0.00095999,120]
[343027626,1732294264296,-1980.68,0.00095999,120]
[343027627,1732294264305,-1980.68,0.00095999,120]
[343027628,1732294264315,-1980.68,0.00095999,120]
[343027629,1732294264325,-1980.68,0.00095999,120]
[343027630,1732294264334,-1980.68,0.00095999,120]
[343027631,1732294264343,-1980.68,0.00095999,120]
[343027632,1732294264353,-1980.68,0.00095999,120]
[343027633,1732294264362,-1980.68,0.00095999,120]
[343027634,1732294264372,-1980.77920207,0.00095999,120]
[343027635,1732294264381,-4587.14,0.00095999,120]
[343027636,1732294264391,-4587.14,0.00095999,120]
[343027637,1732294264401,-4587.14,0.00095999,120]
[343027638,1732294264411,-4587.14,0.00095999,120]
[343027639,1732294264423,-4587.14,0.00095999,120]
[343027640,1732294264433,-4587.14,0.00095999,120]
[343027641,1732294264442,-4587.14,0.00095999,120]
[343027642,1732294264451,-4587.14,0.00095999,120]
[343027643,1732294264461,-4587.15249939,0.00095999,120]
[343027644,1732294264470,-8229.29,0.00095999,120]
[343027645,1732294264478,-8229.29,0.00095999,120]
[343027646,1732294264487,-8229.29,0.00095999,120]
[343027647,1732294264496,-8229.29,0.00095999,120]
[343027648,1732294264506,-8229.29,0.00095999,120]
[343027649,1732294264516,-8229.29,0.00095999,120]
[343027650,1732294264525,-8229.29,0.00095999,120]
[343027651,1732294264535,-8229.29,0.00095999,120]
[343027652,1732294264545,-8229.49029412,0.00095999,120]
[343027653,1732294264556,-259.31851388,0.00095999,120]
[343027654,1732294264566,-10000.0,0.00096,8]
[343027655,1732294264575,-12499.98,0.00096,120]
[343027656,1732294264584,-19635.84555644,0.00096,120]
[343027657,1732294264594,-500.0,0.00096,120]
[343027658,1732294264604,-10137.31885602,0.00096,120]
[343027659,1732294264614,-2018.42048907,0.00096,120]
[343027660,1732294264623,-10000.0,0.00096,120]
[343027661,1732294264633,-5741.66544948,0.0009605,120]
[343027662,1732294264643,-200.0,0.00096055,120]
[343027663,1732294264652,-10000.0,0.000961,120]
[343027664,1732294264662,-324.87388051,0.00096181,120]
[343027665,1732294264675,-324.87388051,0.00096232,120]
[343027666,1732294264684,-10000.0,0.000963,120]
[343027667,1732294264693,-200.0,0.00096337,120]
[343027668,1732294264703,-200.0,0.00096361,120]
[343027669,1732294264713,-324.87388051,0.00096369,120]
[343027670,1732294264723,-10282.37730208,0.000964,120]
[343027671,1732294264733,-50000.0,0.000964,120]
[343027672,1732294264743,-324.87388051,0.00096413,120]
[343027673,1732294264752,-200.0,0.00096421,120]
[343027674,1732294264762,-200.0,0.0009647,120]
[343027675,1732294264771,-849.4,0.00096482,60]
[343027676,1732294264781,-500.0,0.00096499,120]
[343027677,1732294264790,-324.87388051,0.0009657,120]
[343027678,1732294264799,-500.0,0.00096712,120]
[343027679,1732294264809,-757.45641,0.0009679,120]
[343027680,1732294264818,-7500.0,0.000969,120]
[343027681,1732294264828,-5000.0,0.000969,120]
[343027682,1732294264837,-50000.0,0.000969,120]
[343027683,1732294264847,-1149999.99999999,0.00096997,120]
[343027684,1732294264856,-100000.0,0.00097,83]
[343027685,1732294264866,-164413.15707124,0.00097,120]
[343027686,1732294264875,-2000.0,0.00097,120]
[343027687,1732294264885,-5000.0,0.00097,120]
[343027688,1732294264895,-757.45641,0.00097,120]
[343027689,1732294264904,-5944.174399,0.00097113,15]
[343027690,1732294264914,-430.19080784,0.0009718,120]
[343027691,1732294264926,-3539.95,0.00097249,120]
[343027692,1732294264998,-3539.95,0.00097249,120]
[343027693,1732294265009,-279.21,0.00097286,2]
[343027694,1732294265019,-564.0,0.00097304,120]
[343027695,1732294265029,-1256.0,0.00097304,120]
[343027696,1732294265038,-2004.234,0.00097304,120]
[343027697,1732294265048,-5942.0,0.00097304,120]
[343027698,1732294265059,-2095.903,0.00097304,120]
[343027699,1732294265069,-398.61129943,0.00097419,120]
[343027700,1732294265079,-818.833,0.00097425,120]
[343027701,1732294265088,-3539.95,0.00097499,120]
[343027702,1732294265098,-3539.95,0.00097499,120]
[343027703,1732294265107,-3539.95,0.00097499,120]
[343027704,1732294265117,-3539.95,0.00097499,120]
[343027705,1732294265126,-3540.17143111,0.00097499,120]
[343027706,1732294265138,-2040.72530362,0.000975,120]
[343027707,1732294265157,-1100.0,0.000979,35]
[343027708,1732294265170,-1000.0,0.000979,21]
[343027709,1732294265180,-5706.2362445,0.00097933,16]
[343027710,1732294265190,-5468.29809,0.00097933,16]
[343027711,1732294265199,-100000.0,0.00098,89]
[343027712,1732294265209,-8087.0,0.00098,120]
[343027713,1732294265218,-1320.8661938,0.00098,120]
[343027714,1732294265227,-594064.77716998,0.00098,120]
[343027715,1732294265447,-56109.02801586,0.00098,120]
[343027716,1732294265459,-381.54920441,0.00098,120]
[343027717,1732294265470,-406.1747,0.00098,120]
[343027718,1732294265708,-425.0,0.00098,120]
[343027719,1732294265724,-208.01707056,0.000914,2]
[343027720,1732294265734,-4558.27978871,0.00098,120]
[343027721,1732294265747,-2837.22251038,0.00098,120]
[343027722,1732294265787,-356.32304838,0.00098,120]
[343027723,1732294265835,-1569.32972291,0.00098,120]
[343027724,1732294265846,-1261.16787936,0.00098,120]
[343027725,1732294265857,-986.56,0.00098,120]
[343027726,1732294265942,-3701.59038985,0.00094831,120]
[343027727,1732294265951,-501.46742575,0.0009589,120]
[343027728,1732294265961,-13225.34547213,0.00098,120]
[343027729,1732294265972,-485.54,0.00098,120]
[343027730,1732294266024,-10467.03024362,0.00098,120]
[343027731,1732294266035,-9901.04838931,0.00098,120]
[343027732,1732294266048,-5584.06840873,0.00098,120]
[343027733,1732294266059,-3602.21195516,0.00098,120]
[343027734,1732294266071,-3642.57914762,0.00098,120]
[343027735,1732294266083,-3933.36463944,0.00098,120]
[343027736,1732294266094,-4432.26839026,0.00098,120]
[343027737,1732294266104,-6757.96750055,0.00098,120]
[343027738,1732294266116,-27545.56640314,0.00098,120]
[343027739,1732294266127,-1027.43750262,0.00098,120]
[343027740,1732294266138,-1363.68834929,0.00098,120]
[343027741,1732294266148,-12215.62609601,0.00098,120]
[343027742,1732294266159,-6692.19865512,0.00098,120]
[343027743,1732294266175,-280.50166388,0.00098,120]
[343027744,1732294266186,-382.58499983,0.00098,120]
[343027745,1732294266198,-431.79589985,0.00098,120]
[343027746,1732294266209,-438.108183,0.00098,120]
[343027747,1732294266220,-1868.7054102,0.00098,120]
[343027748,1732294266231,-1437.09814,0.00098,120]
[343027749,1732294266242,-1479.156,0.00098,120]
[343027750,1732294267846,-1921.28014925,0.000829,2]
[343027751,1732294267856,-339.90875354,0.00095431,15]
[343027752,1732294267866,-62898.82427073,0.00098,120]
[343027753,1732294267877,-391.49085698,0.00098,120]
[343027754,1732294267889,-1500.0,0.00098,120]
[343027755,1732294267900,-956.1918868,0.00098,120]
[343027756,1732294267912,-2260.48073584,0.00098,120]
[343027757,1732294267928,-259.75526352,0.00098,120]
[343027758,1732294267940,-6932.20649587,0.00098,120]
[343027759,1732294267952,-60899.47111221,0.00098,120]
[343027760,1732294267965,-5008.6298937,0.00098,120]
[343027761,1732294267982,-6042.53165233,0.00098,120]
[343027762,1732294267995,-3419.94290214,0.00098,120]
[343027763,1732294268015,-413.58801844,0.00098,120]
[343027764,1732294268389,-4479.51422945,0.00098,120]
[343027765,1732294268452,-261.40451264,0.00098,120]
[343027766,1732294268589,-1641.25090793,0.000914,2]
[343027767,1732294268601,-280.02924131,0.000914,2]
[343027768,1732294268610,-220.0682246,0.00097046,15]
[343027769,1732294268620,-1037.25253409,0.00098,120]
[343027770,1732294268632,-25298.40843172,0.00098,120]
[343027771,1732294268644,-652.83270309,0.00098,120]
[343027772,1732294268659,-209.8447971,0.00097933,16]
[343027773,1732294268670,-6150.15520291,0.00098,120]
[343027774,1732294268682,-3442.37764246,0.00098,120]
[343027775,1732294268694,-3387.64104064,0.00098,120]
[343027776,1732294268703,-796.297242,0.00098,120]
[343027777,1732294268758,-398.67576,0.00098,120]
[343027778,1732294268959,-1568.01351969,0.00098,120]
[343027779,1732294268970,-721.00957062,0.00098,120]
[343027780,1732294269516,-224.64390769,0.00098,120]
[343027781,1732294269526,-7499.99,0.00098,120]
[343027782,1732294269536,-7500.0,0.00098,120]
[343027783,1732294269546,-7500.0,0.00098,120]
[343027784,1732294269556,-11898.59780179,0.00098009,120]
[343027785,1732294269566,-757.45641,0.0009804,120]
[343027786,1732294269576,-737.306,0.0009816,120]
[343027787,1732294269586,-500.0,0.00098317,120]
[343027788,1732294269595,-1000.0,0.000985,21]
[343027789,1732294269605,-5000.0,0.0009863,70]
[343027790,1732294269614,-40701.52339771,0.000987,120]
[343027791,1732294269624,-244.76235614,0.00098712,90]
[343027792,1732294269634,-1000.0,0.00098817,2]
[343027793,1732294269644,-927.20886129,0.00098817,2]
[343027794,1732294269654,-150.0,0.00098872,90]
[343027795,1732294269663,-171.81452853,0.00098897,120]
[343027796,1732294269676,-171.81452853,0.00098897,120]
[343027797,1732294269686,-171.81452853,0.00098897,120]
[343027798,1732294269695,-171.81,0.00098897,120]
[343027799,1732294269705,-171.81452853,0.00098897,120]
[343027800,1732294269715,-171.81452853,0.00098897,120]
[343027801,1732294269725,-171.81452853,0.00098897,120]
[343027802,1732294269735,-171.81452853,0.00098897,120]
[343027803,1732294269745,-171.81452853,0.00098897,120]
[343027804,1732294269754,-5230.3599355,0.00098929,16]
[343027805,1732294269764,-4992.421781,0.00098929,16]
[343027806,1732294269774,-4754.4836265,0.00098929,16]
[343027807,1732294269783,-205.0,0.0009899,120]
[343027808,1732294269793,-100000.0,0.00098997,95]
[343027809,1732294269803,-4000.0,0.00098998,120]
[343027810,1732294269813,-459.69534654,0.00098999,120]
[343027811,1732294269823,-20814.7034797,0.00098999,120]
[343027812,1732294269833,-150.0,0.00098999,120]
[343027813,1732294269843,-150.0,0.00098999,120]
[343027814,1732294269853,-150.0,0.00098999,120]
[343027815,1732294269862,-150.9900887,0.00098999,120]
[343027816,1732294269872,-370884.43956433,0.00099,45]
[343027817,1732294269884,-69152.85580464,0.00099,45]
[343027818,1732294270035,-11714.57518246,0.00099,45]
[343027819,1732294341144,453.5,0.00051001,2]
[343027820,1732294347373,180.22725,0.00048019,120]
[343027821,1732294422970,157.68,0.00041096,2]
[343027822,1732294451257,200.0,9.6e-05,2]
[343027823,1732294452562,300.0,0.000137,2]
[343027824,1732294454020,400.0,0.000178,2]
[343027825,1732294455268,300.0,0.000219,2]
[343027826,1732294579659,155.91,0.00039618,2]
[343027828,1732294819896,3009.0,0.00045,120]
[343027829,1732294888569,-5266.708512,0.00057511,12]
[343027830,1732294888596,-321.29179995,0.000578,30]
[343027831,1732294888621,-875.18991451,0.0005791,2]
[343027832,1732294888646,-2763.68361817,0.00058,2]
[343027833,1732294888684,-2485.22149986,0.0005801,2]
[343027834,1732294888710,-192.23996268,0.0005801,2]
[343027835,1732294888735,-500.0,0.0005811,2]
[343027836,1732294888760,-500.0,0.0005811,2]
[343027837,1732294888785,-1001.3484095,0.0005811,2]
[343027838,1732294888810,-300.0,0.00058401,15]
[343027839,1732294888834,-6999.2457,0.00058402,2]
[343027840,1732294888858,-192.23996267,0.0005885,2]
[343027841,1732294888882,-163.14,0.00058902,30]
[343027842,1732294888907,-3392.74894166,0.0005968,15]
[343027843,1732294888931,-200.0,0.00059686,2]
[343027844,1732294888955,-192.23996267,0.00059689,2]
[343027845,1732294888981,-849.4,0.000597,60]
[343027846,1732294889006,-7703.25,0.000597,2]
[343027847,1732294889030,-185.65024179,0.000597,38]
[343027848,1732294889054,-173.38276711,0.000597,119]
[343027849,1732294889079,-385.189,0.000597,119]
[343027850,1732294889103,-201.13367907,0.00059773,15]
[343027851,1732294889132,-500.0,0.00059773,15]
[343027852,1732294889157,-500.0,0.00059773,2]
[343027853,1732294889188,-169.29610941,0.00059779,31]
[343027854,1732294889212,-163133.397516,0.0005978,3]
[343027855,1732294889237,-156.0,0.0005978,120]
[343027856,1732294889265,-12812.5250188,0.00059789,3]
[343027857,1732294889291,-187885.47738415,0.0005979,3]
[343027858,1732294904078,-214.66419678,0.0005969,31]
[343027859,1732294904104,-274325.81557885,0.0005979,3]
[343027860,1732294904131,-125459.52022437,0.0005979,3]
[343027861,1732294936598,22067.55,0.0005,120]
[343027862,1732295018395,250.0,0.00031,2]
[343027863,1732295019618,300.0,0.00033,2]
[343027864,1732295063829,-5370.0,0.00058,30]
[343027865,1732295063855,-25672.4776735,0.00058,120]
[343027866,1732295063880,-4630.0,0.00059,30]
[343027867,1732295063904,-30000.0,0.00059799,120]
[343027868,1732295063929,-169.29610941,0.00059799,31]
[343027869,1732295063954,-499999.0,0.000598,120]
[343027870,1732295063979,-499999.0,0.000598,120]
[343027871,1732295064004,-166.82955001,0.000598,39]
[343027872,1732295064028,-499999.0,0.000598,120]
[343027873,1732295064051,-499999.0,0.000598,120]
[343027874,1732295064075,-849.4,0.000598,60]
[343027875,1732295064102,-255.52646217,0.000598,30]
[343027876,1732295064126,-200.0,0.0006,120]
[343027877,1732295064150,-1000.0,0.00060164,120]
[343027878,1732295064173,-1415.54,0.00061462,120]
[343027879,1732295064196,-30000.0,0.00062,120]
[343027880,1732295064221,-17127.90590267,0.00062,100]
[343027881,1732295064246,-173.84,0.0006324,120]
[343027882,1732295064271,-362.582,0.0006396,120]
[343027883,1732295064300,-150.0,0.00064,120]
[343027884,1732295064327,-30000.0,0.00065,120]
[343027885,1732295064354,-1000.0,0.00065753,120]
[343027886,1732295064378,-1000.0,0.00065753,120]
[343027887,1732295064403,-1000.0,0.00065753,120]
[343027888,1732295064596,-1000.0,0.00065753,120]
[343027889,1732295064622,-1000.0,0.00065753,120]
[343027890,1732295064646,-1000.0,0.00065753,120]
[343027891,1732295064671,-1000.0,0.00065753,120]
[343027892,1732295064696,-1000.0,0.00065753,120]
[343027893,1732295064719,-1000.0,0.00065753,120]
[343027894,1732295064743,-1000.0,0.00065753,120]
[343027895,1732295064767,-1000.0,0.00065753,120]
[343027896,1732295064791,-1000.0,0.00065753,120]
[343027897,1732295064815,-1000.0,0.00065753,120]
[343027898,1732295064841,-1000.0,0.00065753,120]
[343027899,1732295064865,-1000.0,0.00065753,120]
[343027900,1732295064890,-1000.0,0.00065753,120]
[343027901,1732295064915,-1000.0,0.00065753,120]
[343027902,1732295064939,-1000.0,0.00065753,120]
[343027903,1732295064965,-1000.0,0.00065753,120]
[343027904,1732295064989,-1000.0,0.00065753,120]
[343027905,1732295065014,-1000.0,0.00065753,120]
[343027906,1732295065039,-1000.0,0.00065753,120]
[343027907,1732295065066,-1000.0,0.00065753,120]
[343027908,1732295065094,-1000.0,0.00065753,120]
[343027909,1732295065118,-1000.0,0.00065753,120]
[343027910,1732295065143,-1000.0,0.00065753,120]
[343027911,1732295065167,-1000.0,0.00065753,120]
[343027912,1732295065192,-1000.0,0.00065753,120]
[343027913,1732295065217,-1000.0,0.00065753,120]
[343027914,1732295065247,-1000.0,0.00065753,120]
[343027915,1732295065273,-189.78,0.00065838,30]
[343027916,1732295065297,-250.0,0.0006591,120]
[343027917,1732295065324,-362.586,0.0006763,120]
[343027918,1732295065352,-1000.0,0.00067684,120]
[343027919,1732295065388,1000.0,0.00065753,120]
[343027920,1732295065425,1834.42208445,0.00065753,120]
[343027921,1732295226144,-2439.7,0.00059373,7]
[343027922,1732295226166,-192.23996268,0.000596,2]
[343027923,1732295226186,-875.18991451,0.000596,2]
[343027924,1732295226207,-192.23996267,0.00059645,2]
[343027925,1732295226227,-192.23996267,0.0005969,2]
[343027926,1732295226251,-305.19880819,0.0005969,2]
[343027927,1732295226274,-214.66419678,0.0005969,31]
[343027928,1732295226296,-473.71233565,0.0005969,2]
[343027929,1732295233113,-399.65616836,0.0005969,2]
[343027930,1732295235127,-127.97990549,0.0005969,2]
[343027931,1732295235154,-261.87025254,0.000597,15]
[343027932,1732295240103,-212.37046965,0.000597,15]
[343027933,1732295331105,158.99,0.00041096,2]
[343027934,1732295347137,-300.0,0.00054999,15]
[343027935,1732295347182,-1116.56508307,0.00055,100]
[343027936,1732295348128,-21628.78154699,0.00055,100]
[343027937,1732295348152,-1114.06675304,0.0005968,15]
[343027940,1732295361335,-2485.22149986,0.000549,2]
[343027941,1732295361359,-3479.89025847,0.0005968,15]
[343027943,1732295363113,-222.27597266,0.0005968,15]
[343027944,1732295363137,-1362.00446858,0.0005969,2]
[343027945,1732295363158,-821.4512,0.000597,2]
[343027946,1732295363179,-500.0,0.00059773,15]
[343027947,1732295363200,-7217.5476306,0.0005978,3]
[343027949,1732295369099,-2170.66207072,0.0005978,3]
[343027950,1732295369133,-14523.05206685,0.0005978,3]
[343027953,1732295383379,321.29179995,0.000434,7]
[343027967,1732295432163,-4934.95778994,0.0005968,15]
[343027968,1732295432173,-4949.44221006,0.0005978,3]
[343027969,1732295432185,-1975.26,0.0005978,3]
[343027970,1732295432272,-4731.00539533,0.0005978,3]
[343027971,1732295432335,-31537.93872224,0.0005978,3]
[343027972,1732295432348,-109159.4920612,0.0005978,3]
[343027973,1732295432357,-34944.5316571,0.0005978,3]